[Event "Titled Tuesday Blitz December 13 Late 2022"]
[White "Chlpik, Martin"]
[Black "Seletsky, Grigory"]
[WhiteFideId "14923351"]
[BlackFideId "14112191"]
[WhiteElo "2109"]
[BlackElo "2492"]
[Result "0-1"]
[Round "06"]
[TimeControl "180+1"]
[Date "2022.12.14"]
[WhiteClock "0:00:48"]
[BlackClock "0:01:22"]

1. d4 {[%clk 0:03:00]}  c5 {[%clk 0:02:59]} 2. Nc3 {[%clk 0:03:01]}  cxd4 {[%clk 0:02:59]} 3. Qxd4 {[%clk 0:03:02]}  Nc6 {[%clk 0:02:59]} 4. Qd2 {[%clk 0:03:02]}  Nf6 {[%clk 0:02:58]} 5. b3 {[%clk 0:03:01]}  e6 {[%clk 0:02:57]} 6. e4 {[%clk 0:03:02]}  Bb4 {[%clk 0:02:57]} 7. Bd3 {[%clk 0:03:01]}  Qa5 {[%clk 0:02:54]} 8. Bb2 {[%clk 0:03:01]}  d5 {[%clk 0:02:54]} 9. a3 {[%clk 0:03:00]}  Be7 {[%clk 0:02:43]} 10. exd5 {[%clk 0:02:57]}  exd5 {[%clk 0:02:40]} 11. Nf3 {[%clk 0:02:52]}  O-O {[%clk 0:02:38]} 12. O-O {[%clk 0:02:50]}  Bg4 {[%clk 0:02:37]} 13. Qf4 {[%clk 0:02:41]}  Bxf3 {[%clk 0:02:35]} 14. Qxf3 {[%clk 0:02:40]}  Ne5 {[%clk 0:02:33]} 15. Qg3 {[%clk 0:02:10]}  Nxd3 {[%clk 0:02:32]} 16. Qxd3 {[%clk 0:02:09]}  Rac8 {[%clk 0:02:19]} 17. Rfe1 {[%clk 0:01:49]}  Bd6 {[%clk 0:02:08]} 18. Nb5 {[%clk 0:01:45]}  Bb8 {[%clk 0:01:46]} 19. Bxf6 {[%clk 0:01:44]}  gxf6 {[%clk 0:01:45]} 20. Nd4 {[%clk 0:01:42]}  Qc7 {[%clk 0:01:41]} 21. g3 {[%clk 0:01:34]}  Rfe8 {[%clk 0:01:34]} 22. Nf5 {[%clk 0:01:18]}  Re5 {[%clk 0:01:32]} 23. Qf3 {[%clk 0:01:16]}  Kh8 {[%clk 0:01:25]} 24. Ne7 {[%clk 0:00:48]}  Qxe7 {[%clk 0:01:22]} 0-1


[Site "https://www.chess.com"]

[Event "Titled Tuesday Blitz December 13 Late 2022"]
[White "Crevatin, Leo"]
[Black "Firouzja, Alireza"]
[WhiteFideId "1726307"]
[BlackFideId "12573981"]
[WhiteElo "2190"]
[BlackElo "2904"]
[Result "0-1"]
[Round "06"]
[TimeControl "180+1"]
[Date "2022.12.13"]
[WhiteClock "0:00:18"]
[BlackClock "0:01:13"]

1. d4 {[%clk 0:03:00]}  e6 {[%clk 0:02:43]} 2. c4 {[%clk 0:02:58]}  Nf6 {[%clk 0:02:41]} 3. Nf3 {[%clk 0:02:56]}  d5 {[%clk 0:02:41]} 4. g3 {[%clk 0:02:56]}  Be7 {[%clk 0:02:38]} 5. Bg2 {[%clk 0:02:56]}  O-O {[%clk 0:02:38]} 6. O-O {[%clk 0:02:55]}  Nbd7 {[%clk 0:02:39]} 7. Qc2 {[%clk 0:02:52]}  c6 {[%clk 0:02:38]} 8. Nbd2 {[%clk 0:02:51]}  b6 {[%clk 0:02:38]} 9. e4 {[%clk 0:02:47]}  Ba6 {[%clk 0:02:38]} 10. b3 {[%clk 0:02:42]}  Rc8 {[%clk 0:02:29]} 11. Bb2 {[%clk 0:02:17]}  c5 {[%clk 0:02:29]} 12. exd5 {[%clk 0:02:05]}  exd5 {[%clk 0:02:28]} 13. dxc5 {[%clk 0:02:03]}  Bxc5 {[%clk 0:02:26]} 14. Rad1 {[%clk 0:01:57]}  b5 {[%clk 0:02:22]} 15. Qf5 {[%clk 0:01:46]}  bxc4 {[%clk 0:02:16]} 16. bxc4 {[%clk 0:01:45]}  Qb6 {[%clk 0:02:13]} 17. Bc3 {[%clk 0:01:38]}  dxc4 {[%clk 0:01:54]} 18. Ng5 {[%clk 0:01:32]}  h6 {[%clk 0:01:51]} 19. Nge4 {[%clk 0:01:26]}  Rfe8 {[%clk 0:01:51]} 20. Nxc5 {[%clk 0:01:14]}  Qxc5 {[%clk 0:01:49]} 21. Qf3 {[%clk 0:01:05]}  Ne5 {[%clk 0:01:48]} 22. Bxe5 {[%clk 0:00:52]}  Qxe5 {[%clk 0:01:45]} 23. Qa3 {[%clk 0:00:47]}  Bb5 {[%clk 0:01:34]} 24. Nf3 {[%clk 0:00:44]}  Qc5 {[%clk 0:01:22]} 25. Qxc5 {[%clk 0:00:44]}  Rxc5 {[%clk 0:01:23]} 26. Nd4 {[%clk 0:00:45]}  c3 {[%clk 0:01:19]} 27. Nxb5 {[%clk 0:00:44]}  Rxb5 {[%clk 0:01:20]} 28. Rc1 {[%clk 0:00:44]}  Rc5 {[%clk 0:01:19]} 29. Rc2 {[%clk 0:00:36]}  g5 {[%clk 0:01:16]} 30. Rfc1 {[%clk 0:00:33]}  Rec8 {[%clk 0:01:16]} 31. Rb1 {[%clk 0:00:29]}  Kg7 {[%clk 0:01:16]} 32. Rb7 {[%clk 0:00:25]}  Rd8 {[%clk 0:01:16]} 33. Rb3 {[%clk 0:00:19]}  Rd1+ {[%clk 0:01:12]} 34. Bf1 {[%clk 0:00:19]}  Ne4 {[%clk 0:01:12]} 35. Kg2 {[%clk 0:00:18]}  Nd2 {[%clk 0:01:13]} 0-1


[Site "https://www.chess.com"]

[Event "Titled Tuesday Blitz December 13 Late 2022"]
[White "Dias, Joao Batista"]
[Black "De VJunior, Liduino Furtado"]
[WhiteFideId "2108240"]
[BlackFideId "2109913"]
[WhiteElo "1898"]
[BlackElo "2050"]
[Result "1-0"]
[Round "06"]
[TimeControl "180+1"]
[Date "2022.12.14"]
[WhiteClock "0:00:19"]
[BlackClock "0:00:03"]

1. e4 {[%clk 0:03:00]}  e6 {[%clk 0:02:59]} 2. d4 {[%clk 0:02:59]}  d5 {[%clk 0:03:00]} 3. Nd2 {[%clk 0:02:59]}  Nf6 {[%clk 0:02:59]} 4. e5 {[%clk 0:03:00]}  Nfd7 {[%clk 0:02:59]} 5. c3 {[%clk 0:03:00]}  c5 {[%clk 0:02:56]} 6. f4 {[%clk 0:03:00]}  Nc6 {[%clk 0:02:56]} 7. Ngf3 {[%clk 0:03:00]}  Be7 {[%clk 0:02:56]} 8. Nb3 {[%clk 0:02:59]}  O-O {[%clk 0:02:55]} 9. Be3 {[%clk 0:02:59]}  b6 {[%clk 0:02:54]} 10. Be2 {[%clk 0:02:59]}  f6 {[%clk 0:02:52]} 11. O-O {[%clk 0:02:58]}  fxe5 {[%clk 0:02:51]} 12. fxe5 {[%clk 0:02:58]}  a5 {[%clk 0:02:42]} 13. Qd2 {[%clk 0:02:56]}  a4 {[%clk 0:02:36]} 14. Nc1 {[%clk 0:02:55]}  cxd4 {[%clk 0:02:36]} 15. cxd4 {[%clk 0:02:55]}  Ba6 {[%clk 0:02:34]} 16. Nd3 {[%clk 0:02:54]}  Na5 {[%clk 0:02:31]} 17. Nf4 {[%clk 0:02:32]}  Bxe2 {[%clk 0:02:18]} 18. Qxe2 {[%clk 0:02:31]}  Rxf4 {[%clk 0:02:02]} 19. Bxf4 {[%clk 0:02:30]}  Nf8 {[%clk 0:01:56]} 20. Qd3 {[%clk 0:02:25]}  Ng6 {[%clk 0:01:52]} 21. Be3 {[%clk 0:02:25]}  Nc4 {[%clk 0:01:52]} 22. Bc1 {[%clk 0:02:19]}  b5 {[%clk 0:01:46]} 23. Rb1 {[%clk 0:02:14]}  Qd7 {[%clk 0:01:03]} 24. b3 {[%clk 0:02:13]}  axb3 {[%clk 0:01:03]} 25. axb3 {[%clk 0:02:13]}  Na5 {[%clk 0:00:58]} 26. Bd2 {[%clk 0:02:08]}  Nc6 {[%clk 0:00:57]} 27. g3 {[%clk 0:01:58]}  Ra2 {[%clk 0:00:51]} 28. Rf2 {[%clk 0:01:49]}  Qb7 {[%clk 0:00:39]} 29. h4 {[%clk 0:01:32]}  Qb6 {[%clk 0:00:33]} 30. Be3 {[%clk 0:01:24]}  Nb4 {[%clk 0:00:31]} 31. Qc3 {[%clk 0:01:08]}  Rxf2 {[%clk 0:00:29]} 32. Bxf2 {[%clk 0:01:07]}  Nc6 {[%clk 0:00:27]} 33. Rc1 {[%clk 0:01:04]}  Nd8 {[%clk 0:00:26]} 34. Qc8 {[%clk 0:01:01]}  h6 {[%clk 0:00:17]} 35. Ne1 {[%clk 0:00:47]}  Qa5 {[%clk 0:00:14]} 36. Nd3 {[%clk 0:00:37]}  Qd2 {[%clk 0:00:14]} 37. Qc2 {[%clk 0:00:35]}  Qa5 {[%clk 0:00:12]} 38. Nc5 {[%clk 0:00:31]}  Nf8 {[%clk 0:00:09]} 39. Be1 {[%clk 0:00:25]}  Qb6 {[%clk 0:00:07]} 40. b4 {[%clk 0:00:25]}  Nc6 {[%clk 0:00:06]} 41. Qc3 {[%clk 0:00:22]}  Bxc5 {[%clk 0:00:03]} 42. bxc5 {[%clk 0:00:21]}  Qc7 {[%clk 0:00:03]} 43. Ra1 {[%clk 0:00:19]} 1-0


[Site "https://www.chess.com"]

[Event "Titled Tuesday Blitz December 13 Late 2022"]
[White "Donskov, Anatoly"]
[Black "Liu, Kelsey"]
[WhiteFideId "24143413"]
[BlackFideId "30944481"]
[WhiteElo "2219"]
[BlackElo "2284"]
[Result "1-0"]
[Round "06"]
[TimeControl "180+1"]
[Date "2022.12.14"]
[WhiteClock "0:02:48"]
[BlackClock "0:01:46"]

1. d4 {[%clk 0:02:57]}  Nf6 {[%clk 0:02:59]} 2. Nf3 {[%clk 0:02:57]}  e6 {[%clk 0:02:59]} 3. Bf4 {[%clk 0:02:57]}  b6 {[%clk 0:02:58]} 4. e3 {[%clk 0:02:57]}  Bb7 {[%clk 0:02:59]} 5. Nbd2 {[%clk 0:02:57]}  d6 {[%clk 0:02:59]} 6. h3 {[%clk 0:02:57]}  Nbd7 {[%clk 0:03:00]} 7. Bh2 {[%clk 0:02:57]}  Be7 {[%clk 0:03:00]} 8. Be2 {[%clk 0:02:58]}  O-O {[%clk 0:03:00]} 9. O-O {[%clk 0:02:59]}  c5 {[%clk 0:02:59]} 10. c3 {[%clk 0:02:58]}  Re8 {[%clk 0:02:57]} 11. a4 {[%clk 0:02:59]}  a6 {[%clk 0:02:54]} 12. Nc4 {[%clk 0:02:56]}  Nf8 {[%clk 0:02:50]} 13. dxc5 {[%clk 0:02:53]}  dxc5 {[%clk 0:02:19]} 14. Qxd8 {[%clk 0:02:52]}  Bxd8 {[%clk 0:02:20]} 15. Nd6 {[%clk 0:02:50]}  Re7 {[%clk 0:02:20]} 16. Nxb7 {[%clk 0:02:49]}  Rxb7 {[%clk 0:02:20]} 17. Ne5 {[%clk 0:02:50]}  Rc8 {[%clk 0:01:46]} 18. Bxa6 {[%clk 0:02:48]} 1-0


[Site "https://www.chess.com"]

[Event "Titled Tuesday Blitz December 13 Late 2022"]
[White "Fedoseev, Vladimir"]
[Black "Svane, Frederik"]
[WhiteFideId "24130737"]
[BlackFideId "12923044"]
[WhiteElo "2733"]
[BlackElo "2466"]
[Result "1-0"]
[Round "06"]
[TimeControl "180+1"]
[Date "2022.12.13"]
[WhiteClock "0:01:53"]
[BlackClock "0:00:19"]

1. e4 {[%clk 0:03:00]}  e5 {[%clk 0:02:59]} 2. Nf3 {[%clk 0:03:01]}  Nf6 {[%clk 0:03:00]} 3. Nxe5 {[%clk 0:03:00]}  d6 {[%clk 0:03:00]} 4. Nf3 {[%clk 0:02:59]}  Nxe4 {[%clk 0:03:00]} 5. Nc3 {[%clk 0:03:00]}  Nxc3 {[%clk 0:03:00]} 6. dxc3 {[%clk 0:03:01]}  Be7 {[%clk 0:02:59]} 7. Be3 {[%clk 0:03:01]}  Nc6 {[%clk 0:02:58]} 8. Bd3 {[%clk 0:02:44]}  Be6 {[%clk 0:02:58]} 9. Qe2 {[%clk 0:02:37]}  Qd7 {[%clk 0:02:58]} 10. O-O-O {[%clk 0:02:37]}  O-O-O {[%clk 0:02:58]} 11. Kb1 {[%clk 0:02:36]}  Rhe8 {[%clk 0:02:50]} 12. h3 {[%clk 0:02:34]}  h6 {[%clk 0:02:49]} 13. Bb5 {[%clk 0:02:32]}  a6 {[%clk 0:02:29]} 14. Bxa6 {[%clk 0:02:16]}  bxa6 {[%clk 0:02:29]} 15. Qxa6+ {[%clk 0:02:17]}  Kb8 {[%clk 0:02:29]} 16. c4 {[%clk 0:02:04]}  d5 {[%clk 0:00:19]} 17. Ne5 {[%clk 0:01:53]} 1-0


[Site "https://www.chess.com"]

[Event "Titled Tuesday Blitz December 13 Late 2022"]
[White "Fernandez De La Vara, Arnaldo"]
[Black "Holt, Conrad"]
[WhiteFideId "3518388"]
[BlackFideId "2034387"]
[WhiteElo "2387"]
[BlackElo "2592"]
[Result "0-1"]
[Round "06"]
[TimeControl "180+1"]
[Date "2022.12.13"]
[WhiteClock "0:00:01"]
[BlackClock "0:00:30"]

1. Nf3 {[%clk 0:03:00]}  d5 {[%clk 0:02:58]} 2. g3 {[%clk 0:03:00]}  Bf5 {[%clk 0:02:57]} 3. Bg2 {[%clk 0:03:00]}  e6 {[%clk 0:02:57]} 4. d3 {[%clk 0:03:00]}  c6 {[%clk 0:02:57]} 5. O-O {[%clk 0:03:00]}  Nd7 {[%clk 0:02:56]} 6. Nbd2 {[%clk 0:03:00]}  Bc5 {[%clk 0:02:54]} 7. e4 {[%clk 0:02:59]}  Bg6 {[%clk 0:02:47]} 8. Qe2 {[%clk 0:02:58]}  Ne7 {[%clk 0:02:46]} 9. b3 {[%clk 0:02:55]}  dxe4 {[%clk 0:02:39]} 10. Nxe4 {[%clk 0:02:52]}  Bxe4 {[%clk 0:02:37]} 11. dxe4 {[%clk 0:02:53]}  O-O {[%clk 0:02:36]} 12. Rd1 {[%clk 0:02:49]}  Qc7 {[%clk 0:02:36]} 13. Bb2 {[%clk 0:02:30]}  Rfd8 {[%clk 0:02:33]} 14. a4 {[%clk 0:02:22]}  Ng6 {[%clk 0:02:25]} 15. Kh1 {[%clk 0:02:05]}  Nf6 {[%clk 0:02:24]} 16. Ne1 {[%clk 0:01:52]}  e5 {[%clk 0:02:20]} 17. Nd3 {[%clk 0:01:34]}  Bd4 {[%clk 0:02:20]} 18. c3 {[%clk 0:01:28]}  Bb6 {[%clk 0:02:20]} 19. Ba3 {[%clk 0:01:24]}  c5 {[%clk 0:02:18]} 20. Nb2 {[%clk 0:01:23]}  Ba5 {[%clk 0:02:17]} 21. Rac1 {[%clk 0:01:14]}  Rxd1+ {[%clk 0:02:16]} 22. Qxd1 {[%clk 0:01:15]}  Qc6 {[%clk 0:02:06]} 23. b4 {[%clk 0:01:08]}  Bb6 {[%clk 0:02:01]} 24. b5 {[%clk 0:01:03]}  Qe6 {[%clk 0:02:00]} 25. Qe2 {[%clk 0:00:56]}  Qb3 {[%clk 0:01:42]} 26. Nc4 {[%clk 0:00:55]}  Qxa4 {[%clk 0:01:42]} 27. Rb1 {[%clk 0:00:52]}  Rd8 {[%clk 0:01:39]} 28. f3 {[%clk 0:00:30]}  h5 {[%clk 0:01:34]} 29. h4 {[%clk 0:00:29]}  Bc7 {[%clk 0:01:32]} 30. Bf1 {[%clk 0:00:26]}  b6 {[%clk 0:01:23]} 31. Qb2 {[%clk 0:00:20]}  Rd1 {[%clk 0:01:18]} 32. Kg2 {[%clk 0:00:20]}  Rxb1 {[%clk 0:01:11]} 33. Qxb1 {[%clk 0:00:21]}  a6 {[%clk 0:01:10]} 34. bxa6 {[%clk 0:00:04]}  Qxa6 {[%clk 0:01:04]} 35. Qb3 {[%clk 0:00:04]}  b5 {[%clk 0:01:00]} 36. Ne3 {[%clk 0:00:03]}  c4 {[%clk 0:01:00]} 37. Qb2 {[%clk 0:00:02]}  Bd6 {[%clk 0:00:55]} 38. Bb4 {[%clk 0:00:01]}  Bxb4 {[%clk 0:00:54]} 39. Qxb4 {[%clk 0:00:02]}  Qa2+ {[%clk 0:00:53]} 40. Kg1 {[%clk 0:00:02]}  Qd2 {[%clk 0:00:51]} 41. Nf5 {[%clk 0:00:02]}  Qd7 {[%clk 0:00:45]} 42. Qc5 {[%clk 0:00:02]}  Kh7 {[%clk 0:00:42]} 43. Be2 {[%clk 0:00:02]}  Ne8 {[%clk 0:00:38]} 44. Kf2 {[%clk 0:00:02]}  Nc7 {[%clk 0:00:36]} 45. Nd6 {[%clk 0:00:03]}  Ne6 {[%clk 0:00:35]} 46. Qb4 {[%clk 0:00:03]}  Qa7+ {[%clk 0:00:34]} 47. Kg2 {[%clk 0:00:03]}  Ngf4+ {[%clk 0:00:30]} 48. gxf4 {[%clk 0:00:03]}  Nxf4+ {[%clk 0:00:30]} 49. Kf1 {[%clk 0:00:03]}  Qa1+ {[%clk 0:00:30]} 50. Kf2 {[%clk 0:00:01]}  Qa2 {[%clk 0:00:30]} 51. Kg3 {[%clk 0:00:01]}  Qxe2 {[%clk 0:00:30]} 0-1


[Site "https://www.chess.com"]

[Event "Titled Tuesday Blitz December 13 Late 2022"]
[White "Freile Martin, Javier"]
[Black "Rodriguez Fontecha, Marcos"]
[WhiteFideId "3600165"]
[BlackFideId "2256576"]
[WhiteElo "2378"]
[BlackElo "2263"]
[Result "0-1"]
[Round "06"]
[TimeControl "180+1"]
[Date "2022.12.14"]
[WhiteClock "0:01:01"]
[BlackClock "0:01:24"]

1. c4 {[%clk 0:03:00]}  c6 {[%clk 0:02:59]} 2. d4 {[%clk 0:02:57]}  d5 {[%clk 0:02:59]} 3. Nf3 {[%clk 0:02:57]}  Nf6 {[%clk 0:03:00]} 4. g3 {[%clk 0:02:56]}  g6 {[%clk 0:02:59]} 5. Bg2 {[%clk 0:02:55]}  Bg7 {[%clk 0:02:59]} 6. O-O {[%clk 0:02:54]}  O-O {[%clk 0:03:00]} 7. Qc2 {[%clk 0:02:53]}  a6 {[%clk 0:02:59]} 8. Nbd2 {[%clk 0:02:51]}  b5 {[%clk 0:02:58]} 9. b3 {[%clk 0:02:39]}  Bf5 {[%clk 0:02:56]} 10. Qd1 {[%clk 0:02:38]}  Nbd7 {[%clk 0:02:52]} 11. a4 {[%clk 0:02:33]}  bxc4 {[%clk 0:02:45]} 12. bxc4 {[%clk 0:02:33]}  Nb6 {[%clk 0:02:45]} 13. Ne5 {[%clk 0:02:25]}  Rc8 {[%clk 0:02:35]} 14. a5 {[%clk 0:02:21]}  Nbd7 {[%clk 0:02:35]} 15. Ndf3 {[%clk 0:02:19]}  Ne4 {[%clk 0:02:29]} 16. e3 {[%clk 0:02:08]}  Nxe5 {[%clk 0:02:26]} 17. dxe5 {[%clk 0:02:06]}  dxc4 {[%clk 0:02:17]} 18. Qa4 {[%clk 0:02:04]}  Qd3 {[%clk 0:01:51]} 19. Ra3 {[%clk 0:01:48]}  Nc3 {[%clk 0:01:43]} 20. Qb4 {[%clk 0:01:43]}  Ne2+ {[%clk 0:01:43]} 21. Kh1 {[%clk 0:01:42]}  c3 {[%clk 0:01:39]} 22. Nd4 {[%clk 0:01:18]}  c5 {[%clk 0:01:31]} 23. Nxf5 {[%clk 0:01:01]}  cxb4 {[%clk 0:01:25]} 24. Nxe7+ {[%clk 0:01:01]}  Kh8 {[%clk 0:01:24]} 0-1


[Site "https://www.chess.com"]

[Event "Titled Tuesday Blitz December 13 Late 2022"]
[White "Gerbelli Neto, Eduardo"]
[Black "Hamedi Nia, Vesal"]
[WhiteFideId "2103281"]
[BlackFideId "12542253"]
[WhiteElo "2178"]
[BlackElo "1844"]
[Result "1-0"]
[Round "06"]
[TimeControl "180+1"]
[Date "2022.12.14"]
[WhiteClock "0:00:07"]
[BlackClock "0:00:04"]

1. e4 {[%clk 0:03:00]}  c5 {[%clk 0:02:59]} 2. Nc3 {[%clk 0:03:01]}  Nc6 {[%clk 0:02:59]} 3. f4 {[%clk 0:03:01]}  e6 {[%clk 0:02:58]} 4. Nf3 {[%clk 0:03:02]}  d5 {[%clk 0:02:58]} 5. Bb5 {[%clk 0:03:02]}  d4 {[%clk 0:02:48]} 6. Bxc6+ {[%clk 0:03:02]}  bxc6 {[%clk 0:02:49]} 7. Ne2 {[%clk 0:03:03]}  Nf6 {[%clk 0:02:46]} 8. d3 {[%clk 0:03:03]}  a5 {[%clk 0:02:45]} 9. b3 {[%clk 0:03:03]}  a4 {[%clk 0:02:43]} 10. Bd2 {[%clk 0:03:00]}  axb3 {[%clk 0:02:43]} 11. axb3 {[%clk 0:02:59]}  Ba6 {[%clk 0:02:43]} 12. O-O {[%clk 0:02:58]}  Be7 {[%clk 0:02:42]} 13. Qe1 {[%clk 0:02:51]}  O-O {[%clk 0:02:40]} 14. Ba5 {[%clk 0:02:45]}  Qc8 {[%clk 0:02:39]} 15. Ng3 {[%clk 0:02:29]}  Ng4 {[%clk 0:02:35]} 16. Bd2 {[%clk 0:02:28]}  Bb5 {[%clk 0:02:27]} 17. Qe2 {[%clk 0:02:27]}  Nf6 {[%clk 0:02:22]} 18. f5 {[%clk 0:02:18]}  Re8 {[%clk 0:02:11]} 19. Rxa8 {[%clk 0:01:45]}  Qxa8 {[%clk 0:02:08]} 20. fxe6 {[%clk 0:01:46]}  fxe6 {[%clk 0:02:07]} 21. Ng5 {[%clk 0:01:46]}  Qc8 {[%clk 0:02:01]} 22. e5 {[%clk 0:01:46]}  Nd5 {[%clk 0:01:58]} 23. Qh5 {[%clk 0:01:44]}  Bxg5 {[%clk 0:01:56]} 24. Qf7+ {[%clk 0:01:40]}  Kh8 {[%clk 0:01:54]} 25. Bxg5 {[%clk 0:01:41]}  Ba6 {[%clk 0:01:20]} 26. Nh5 {[%clk 0:01:38]}  Rg8 {[%clk 0:01:19]} 27. Rf3 {[%clk 0:00:49]}  Qe8 {[%clk 0:01:17]} 28. Qxe8 {[%clk 0:00:28]}  Rxe8 {[%clk 0:01:14]} 29. Rf7 {[%clk 0:00:28]}  h6 {[%clk 0:00:58]} 30. Bd2 {[%clk 0:00:19]}  Re7 {[%clk 0:00:56]} 31. Rf8+ {[%clk 0:00:18]}  Kh7 {[%clk 0:00:55]} 32. Ng3 {[%clk 0:00:17]}  Rb7 {[%clk 0:00:38]} 33. Ne4 {[%clk 0:00:17]}  c4 {[%clk 0:00:39]} 34. bxc4 {[%clk 0:00:15]}  Rb1+ {[%clk 0:00:38]} 35. Kf2 {[%clk 0:00:15]}  Ne7 {[%clk 0:00:33]} 36. Rf7 {[%clk 0:00:14]}  Ng6 {[%clk 0:00:30]} 37. Nf6+ {[%clk 0:00:12]}  Kh8 {[%clk 0:00:30]} 38. Nh5 {[%clk 0:00:10]}  Nxe5 {[%clk 0:00:27]} 39. Rxg7 {[%clk 0:00:11]}  Rb2 {[%clk 0:00:27]} 40. Ra7 {[%clk 0:00:09]}  Rxc2 {[%clk 0:00:26]} 41. Ke1 {[%clk 0:00:08]}  Ra2 {[%clk 0:00:18]} 42. Nf6 {[%clk 0:00:08]}  Nxd3+ {[%clk 0:00:17]} 43. Ke2 {[%clk 0:00:08]}  Nf4+ {[%clk 0:00:16]} 44. Kf3 {[%clk 0:00:07]}  Bb7 {[%clk 0:00:04]} 45. Rxb7 {[%clk 0:00:07]}  Ra3+ {[%clk 0:00:04]} 46. Kxf4 {[%clk 0:00:07]} 1-0


[Site "https://www.chess.com"]

[Event "Titled Tuesday Blitz December 13 Late 2022"]
[White "Goltsev, Dmitry"]
[Black "Grigoriants, Sergey"]
[WhiteFideId "24176710"]
[BlackFideId "4130804"]
[WhiteElo "2327"]
[BlackElo "2502"]
[Result "0-1"]
[Round "06"]
[TimeControl "180+1"]
[Date "2022.12.13"]
[WhiteClock "0:00:02"]
[BlackClock "0:00:09"]

1. e4 {[%clk 0:03:00]}  c5 {[%clk 0:02:55]} 2. Nf3 {[%clk 0:02:59]}  d6 {[%clk 0:02:54]} 3. d4 {[%clk 0:03:00]}  cxd4 {[%clk 0:02:54]} 4. Nxd4 {[%clk 0:03:01]}  Nf6 {[%clk 0:02:54]} 5. Nc3 {[%clk 0:03:01]}  a6 {[%clk 0:02:55]} 6. Be2 {[%clk 0:03:02]}  e6 {[%clk 0:02:50]} 7. O-O {[%clk 0:03:02]}  Qc7 {[%clk 0:02:49]} 8. f4 {[%clk 0:03:02]}  Be7 {[%clk 0:02:48]} 9. Be3 {[%clk 0:03:01]}  b5 {[%clk 0:02:47]} 10. Bf3 {[%clk 0:03:01]}  Bb7 {[%clk 0:02:48]} 11. a3 {[%clk 0:03:01]}  Nbd7 {[%clk 0:02:47]} 12. Qe2 {[%clk 0:03:00]}  O-O {[%clk 0:02:47]} 13. Rad1 {[%clk 0:02:59]}  Rfe8 {[%clk 0:02:47]} 14. f5 {[%clk 0:02:55]}  Bf8 {[%clk 0:02:45]} 15. fxe6 {[%clk 0:02:55]}  fxe6 {[%clk 0:02:45]} 16. Bg4 {[%clk 0:02:47]}  Nxg4 {[%clk 0:02:38]} 17. Qxg4 {[%clk 0:02:48]}  Ne5 {[%clk 0:02:39]} 18. Qh3 {[%clk 0:02:37]}  Qd7 {[%clk 0:02:20]} 19. Bf4 {[%clk 0:02:30]}  Ng6 {[%clk 0:02:14]} 20. Bg3 {[%clk 0:02:28]}  Rad8 {[%clk 0:02:05]} 21. Rf2 {[%clk 0:02:17]}  Ne5 {[%clk 0:01:44]} 22. Bxe5 {[%clk 0:02:02]}  dxe5 {[%clk 0:01:44]} 23. Nxe6 {[%clk 0:02:02]}  Qxd1+ {[%clk 0:01:31]} 24. Nxd1 {[%clk 0:02:03]}  Rxd1+ {[%clk 0:01:30]} 25. Rf1 {[%clk 0:02:03]}  Rxf1+ {[%clk 0:01:31]} 26. Kxf1 {[%clk 0:02:04]}  Bc8 {[%clk 0:01:31]} 27. Qc3 {[%clk 0:01:59]}  Bxe6 {[%clk 0:01:30]} 28. Qc6 {[%clk 0:01:58]}  Bc4+ {[%clk 0:01:22]} 29. Ke1 {[%clk 0:01:53]}  Re6 {[%clk 0:01:23]} 30. Qc8 {[%clk 0:01:46]}  Rf6 {[%clk 0:01:22]} 31. b3 {[%clk 0:01:43]}  Bf7 {[%clk 0:01:18]} 32. c4 {[%clk 0:01:41]}  bxc4 {[%clk 0:01:15]} 33. bxc4 {[%clk 0:01:42]}  Bg6 {[%clk 0:01:12]} 34. Qa8 {[%clk 0:01:33]}  h6 {[%clk 0:01:10]} 35. c5 {[%clk 0:01:29]}  Kh7 {[%clk 0:01:10]} 36. c6 {[%clk 0:01:29]}  Bxe4 {[%clk 0:01:10]} 37. c7 {[%clk 0:01:29]}  Bxa8 {[%clk 0:01:09]} 38. c8=Q {[%clk 0:01:30]}  Be4 {[%clk 0:01:08]} 39. a4 {[%clk 0:01:23]}  a5 {[%clk 0:01:01]} 40. g3 {[%clk 0:01:18]}  Bd3 {[%clk 0:00:58]} 41. Kd2 {[%clk 0:01:10]}  e4 {[%clk 0:00:57]} 42. g4 {[%clk 0:01:06]}  Rf3 {[%clk 0:00:57]} 43. g5 {[%clk 0:00:56]}  hxg5 {[%clk 0:00:50]} 44. Qg4 {[%clk 0:00:52]}  Bb4+ {[%clk 0:00:46]} 45. Kc1 {[%clk 0:00:52]}  Kh6 {[%clk 0:00:29]} 46. h4 {[%clk 0:00:51]}  Be7 {[%clk 0:00:23]} 47. h5 {[%clk 0:00:25]}  Bf6 {[%clk 0:00:21]} 48. Qc8 {[%clk 0:00:20]}  Kxh5 {[%clk 0:00:19]} 49. Kd2 {[%clk 0:00:14]}  Kh4 {[%clk 0:00:14]} 50. Qa8 {[%clk 0:00:09]}  g4 {[%clk 0:00:12]} 51. Qxa5 {[%clk 0:00:07]}  g3 {[%clk 0:00:12]} 52. Qc5 {[%clk 0:00:04]}  Bg5+ {[%clk 0:00:10]} 53. Kc3 {[%clk 0:00:02]}  g2 {[%clk 0:00:10]} 54. Qg1 {[%clk 0:00:02]}  Bf1+ {[%clk 0:00:09]} 0-1


[Site "https://www.chess.com"]